[Event "Titled Tuesday Blitz August 08 Late 2023"]
[White "Fiorito, Joaquin"]
[Black "Hoffmann, Asa"]
[WhiteFideId "180173"]
[BlackFideId "2001470"]
[WhiteElo "2719"]
[BlackElo "2353"]
[Result "0-1"]
[Round "2"]
[TimeControl "180+1"]
[Date "2023.08.08"]
[WhiteClock "0:01:33"]
[BlackClock "0:01:40"]
[Board "73"]

1. d4 {[%clk 0:03:00]}  Nf6 {[%clk 0:02:55]} 2. c4 {[%clk 0:03:01]}  c5 {[%clk 0:02:53]} 3. d5 {[%clk 0:03:01]}  e5 {[%clk 0:02:50]} 4. Nc3 {[%clk 0:03:00]}  d6 {[%clk 0:02:50]} 5. e4 {[%clk 0:03:00]}  Be7 {[%clk 0:02:50]} 6. g3 {[%clk 0:03:01]}  O-O {[%clk 0:02:49]} 7. Bg2 {[%clk 0:03:02]}  Na6 {[%clk 0:02:49]} 8. Nge2 {[%clk 0:03:02]}  Ne8 {[%clk 0:02:49]} 9. O-O {[%clk 0:02:58]}  Bd7 {[%clk 0:02:49]} 10. f4 {[%clk 0:02:58]}  Bf6 {[%clk 0:02:48]} 11. Be3 {[%clk 0:02:54]}  Nec7 {[%clk 0:02:47]} 12. Qd2 {[%clk 0:02:51]}  b5 {[%clk 0:02:47]} 13. cxb5 {[%clk 0:02:50]}  Nxb5 {[%clk 0:02:46]} 14. Nxb5 {[%clk 0:02:43]}  Bxb5 {[%clk 0:02:46]} 15. a4 {[%clk 0:02:37]}  Bxe2 {[%clk 0:02:44]} 16. Qxe2 {[%clk 0:02:38]}  Nb4 {[%clk 0:02:43]} 17. Rac1 {[%clk 0:02:28]}  Rb8 {[%clk 0:02:43]} 18. f5 {[%clk 0:02:21]}  Bg5 {[%clk 0:02:41]} 19. h4 {[%clk 0:02:18]}  Bxe3+ {[%clk 0:02:41]} 20. Qxe3 {[%clk 0:02:19]}  f6 {[%clk 0:02:41]} 21. g4 {[%clk 0:02:17]}  h6 {[%clk 0:02:41]} 22. g5 {[%clk 0:02:15]}  hxg5 {[%clk 0:02:41]} 23. hxg5 {[%clk 0:02:16]}  Kf7 {[%clk 0:02:41]} 24. Bf3 {[%clk 0:02:09]}  Rh8 {[%clk 0:02:39]} 25. Kg2 {[%clk 0:02:08]}  Qa5 {[%clk 0:02:35]} 26. Rh1 {[%clk 0:02:06]}  Qxa4 {[%clk 0:02:26]} 27. Bh5+ {[%clk 0:02:06]}  Ke7 {[%clk 0:02:25]} 28. Qg3 {[%clk 0:02:06]}  Rbg8 {[%clk 0:02:03]} 29. Ra1 {[%clk 0:02:04]}  Qc2+ {[%clk 0:01:56]} 30. Qf2 {[%clk 0:01:56]}  Qxf2+ {[%clk 0:01:46]} 31. Kxf2 {[%clk 0:01:55]}  a6 {[%clk 0:01:46]} 32. Ke2 {[%clk 0:01:49]}  fxg5 {[%clk 0:01:42]} 33. Bg6 {[%clk 0:01:47]}  Rh4 {[%clk 0:01:41]} 34. Rh3 {[%clk 0:01:33]}  Rxh3 {[%clk 0:01:40]} 0-1


[Site "https://www.chess.com"]

[Event "Titled Tuesday Blitz August 08 Late 2023"]
[White "Matinian, Nikita"]
[Black "Skaric, Djuro"]
[WhiteFideId "24129100"]
[BlackFideId "934569"]
[WhiteElo "2697"]
[BlackElo "2331"]
[Result "1-0"]
[Round "2"]
[TimeControl "180+1"]
[Date "2023.08.08"]
[WhiteClock "0:00:09"]
[BlackClock "0:00:29"]
[Board "76"]

1. e4 {[%clk 0:03:00]}  d6 {[%clk 0:03:00]} 2. d4 {[%clk 0:02:59]}  g6 {[%clk 0:03:01]} 3. Nc3 {[%clk 0:03:00]}  Bg7 {[%clk 0:03:01]} 4. f4 {[%clk 0:03:01]}  Nf6 {[%clk 0:03:01]} 5. Nf3 {[%clk 0:03:01]}  a6 {[%clk 0:02:58]} 6. e5 {[%clk 0:03:00]}  dxe5 {[%clk 0:02:55]} 7. fxe5 {[%clk 0:03:01]}  Nd5 {[%clk 0:02:54]} 8. Bc4 {[%clk 0:03:01]}  Nxc3 {[%clk 0:02:53]} 9. bxc3 {[%clk 0:03:02]}  O-O {[%clk 0:02:48]} 10. h4 {[%clk 0:03:00]}  c5 {[%clk 0:02:46]} 11. h5 {[%clk 0:02:59]}  b5 {[%clk 0:02:39]} 12. Bd3 {[%clk 0:02:48]}  Bb7 {[%clk 0:02:35]} 13. hxg6 {[%clk 0:02:48]}  fxg6 {[%clk 0:02:31]} 14. Ng5 {[%clk 0:02:39]}  c4 {[%clk 0:02:28]} 15. Rxh7 {[%clk 0:02:36]}  cxd3 {[%clk 0:02:25]} 16. Rxg7+ {[%clk 0:02:37]}  Kxg7 {[%clk 0:02:22]} 17. Ne6+ {[%clk 0:02:37]}  Kg8 {[%clk 0:02:22]} 18. Nxd8 {[%clk 0:02:37]}  Rxd8 {[%clk 0:02:22]} 19. Qxd3 {[%clk 0:02:36]}  Kg7 {[%clk 0:02:22]} 20. Qh3 {[%clk 0:02:32]}  Rh8 {[%clk 0:02:19]} 21. Qg3 {[%clk 0:02:07]}  Rh5 {[%clk 0:02:10]} 22. a4 {[%clk 0:02:03]}  b4 {[%clk 0:02:07]} 23. cxb4 {[%clk 0:02:03]}  e6 {[%clk 0:02:04]} 24. Bb2 {[%clk 0:02:00]}  Bd5 {[%clk 0:02:03]} 25. O-O-O {[%clk 0:01:59]}  Nc6 {[%clk 0:02:02]} 26. Bc3 {[%clk 0:01:58]}  Rc8 {[%clk 0:02:01]} 27. Rf1 {[%clk 0:01:55]}  Ne7 {[%clk 0:01:56]} 28. Bd2 {[%clk 0:01:47]}  Be4 {[%clk 0:01:54]} 29. c3 {[%clk 0:01:46]}  Nf5 {[%clk 0:01:53]} 30. Qf2 {[%clk 0:01:43]}  Rh2 {[%clk 0:01:52]} 31. Rg1 {[%clk 0:01:29]}  Rc4 {[%clk 0:01:48]} 32. Kb2 {[%clk 0:01:27]}  a5 {[%clk 0:01:35]} 33. Bf4 {[%clk 0:01:25]}  axb4 {[%clk 0:01:34]} 34. Bxh2 {[%clk 0:01:24]}  bxc3+ {[%clk 0:01:34]} 35. Ka3 {[%clk 0:01:19]}  Rxd4 {[%clk 0:01:29]} 36. Rc1 {[%clk 0:01:15]}  Rd3 {[%clk 0:01:28]} 37. Qa7+ {[%clk 0:01:13]}  Kh6 {[%clk 0:01:24]} 38. Bf4+ {[%clk 0:01:12]}  Kh5 {[%clk 0:01:23]} 39. g4+ {[%clk 0:00:45]}  Kxg4 {[%clk 0:01:23]} 40. Qf2 {[%clk 0:00:36]}  Bf3 {[%clk 0:01:18]} 41. Bh2 {[%clk 0:00:25]}  c2+ {[%clk 0:01:14]} 42. Kb4 {[%clk 0:00:19]}  Nd4 {[%clk 0:01:13]} 43. Rg1+ {[%clk 0:00:18]}  Kf5 {[%clk 0:01:13]} 44. Qh4 {[%clk 0:00:16]}  Rb3+ {[%clk 0:01:02]} 45. Kc5 {[%clk 0:00:14]}  c1=Q+ {[%clk 0:01:00]} 46. Rxc1 {[%clk 0:00:13]}  Ne2 {[%clk 0:01:00]} 47. Rf1 {[%clk 0:00:08]}  Rc3+ {[%clk 0:00:59]} 48. Kb6 {[%clk 0:00:08]}  Rb3+ {[%clk 0:00:59]} 49. Ka6 {[%clk 0:00:07]}  g5 {[%clk 0:00:55]} 50. Qh7+ {[%clk 0:00:05]}  Kg4 {[%clk 0:00:53]} 51. Rxf3 {[%clk 0:00:05]}  Rxf3 {[%clk 0:00:51]} 52. Qd7 {[%clk 0:00:04]}  Kh3 {[%clk 0:00:48]} 53. Qxe6+ {[%clk 0:00:04]}  Kxh2 {[%clk 0:00:48]} 54. Qa2 {[%clk 0:00:03]}  Rf2 {[%clk 0:00:47]} 55. e6 {[%clk 0:00:04]}  Kg3 {[%clk 0:00:38]} 56. e7 {[%clk 0:00:04]}  Rf6+ {[%clk 0:00:38]} 57. Kb7 {[%clk 0:00:02]}  Nc3 {[%clk 0:00:38]} 58. Qb3 {[%clk 0:00:02]}  Rf3 {[%clk 0:00:35]} 59. Qxc3 {[%clk 0:00:02]}  Rxc3 {[%clk 0:00:34]} 60. e8=Q {[%clk 0:00:03]}  Rf3 {[%clk 0:00:35]} 61. Qe5+ {[%clk 0:00:03]}  Kh3 {[%clk 0:00:33]} 62. a5 {[%clk 0:00:04]}  g4 {[%clk 0:00:33]} 63. a6 {[%clk 0:00:04]}  g3 {[%clk 0:00:33]} 64. Qh5+ {[%clk 0:00:04]}  Kg2 {[%clk 0:00:33]} 65. a7 {[%clk 0:00:05]}  Rb3+ {[%clk 0:00:33]} 66. Kc7 {[%clk 0:00:06]}  Ra3 {[%clk 0:00:33]} 67. Kb6 {[%clk 0:00:06]}  Rb3+ {[%clk 0:00:31]} 68. Kc5 {[%clk 0:00:06]}  Ra3 {[%clk 0:00:31]} 69. a8=Q+ {[%clk 0:00:06]}  Rxa8 {[%clk 0:00:30]} 70. Qd5+ {[%clk 0:00:07]}  Kf1 {[%clk 0:00:30]} 71. Qxa8 {[%clk 0:00:08]}  g2 {[%clk 0:00:30]} 72. Qf3+ {[%clk 0:00:08]}  Kg1 {[%clk 0:00:30]} 73. Kd4 {[%clk 0:00:08]}  Kh2 {[%clk 0:00:30]} 74. Qh5+ {[%clk 0:00:09]}  Kg1 {[%clk 0:00:30]} 75. Ke3 {[%clk 0:00:08]}  Kf1 {[%clk 0:00:29]} 76. Qd1# {[%clk 0:00:09]} 1-0


[Site "https://www.chess.com"]

[Event "Titled Tuesday Blitz August 08 Late 2023"]
[White "Kukavica, Tony"]
[Black "Sokolovsky, Yahli"]
[WhiteFideId "2062542"]
[BlackFideId "2820242"]
[WhiteElo "2329"]
[BlackElo "2695"]
[Result "0-1"]
[Round "2"]
[TimeControl "180+1"]
[Date "2023.08.08"]
[WhiteClock "0:00:11"]
[BlackClock "0:00:20"]
[Board "77"]

1. d4 {[%clk 0:02:51]}  d5 {[%clk 0:03:00]} 2. c4 {[%clk 0:02:50]}  e6 {[%clk 0:03:00]} 3. Nc3 {[%clk 0:02:50]}  c6 {[%clk 0:03:00]} 4. cxd5 {[%clk 0:02:50]}  exd5 {[%clk 0:03:00]} 5. Bf4 {[%clk 0:02:51]}  Bf5 {[%clk 0:02:51]} 6. e3 {[%clk 0:02:50]}  Nd7 {[%clk 0:02:45]} 7. Nf3 {[%clk 0:02:48]}  Be7 {[%clk 0:02:42]} 8. Qb3 {[%clk 0:02:44]}  Qb6 {[%clk 0:02:41]} 9. Nd2 {[%clk 0:02:29]}  Ngf6 {[%clk 0:02:38]} 10. f3 {[%clk 0:02:29]}  Bg6 {[%clk 0:02:38]} 11. g4 {[%clk 0:02:07]}  h5 {[%clk 0:02:15]} 12. g5 {[%clk 0:02:03]}  Nh7 {[%clk 0:02:15]} 13. h4 {[%clk 0:02:03]}  Bf5 {[%clk 0:01:48]} 14. Bh3 {[%clk 0:02:00]}  Bxh3 {[%clk 0:01:48]} 15. Rxh3 {[%clk 0:02:01]}  Nhf8 {[%clk 0:01:48]} 16. Rh2 {[%clk 0:01:53]}  Ne6 {[%clk 0:01:47]} 17. Qxb6 {[%clk 0:01:46]}  axb6 {[%clk 0:01:44]} 18. Be5 {[%clk 0:01:47]}  Nxe5 {[%clk 0:01:36]} 19. dxe5 {[%clk 0:01:48]}  b5 {[%clk 0:01:36]} 20. f4 {[%clk 0:01:40]}  Nc5 {[%clk 0:01:20]} 21. Ke2 {[%clk 0:01:36]}  g6 {[%clk 0:01:12]} 22. Nf3 {[%clk 0:01:34]}  b4 {[%clk 0:01:08]} 23. Nb1 {[%clk 0:01:19]}  Nb3 {[%clk 0:01:06]} 24. axb3 {[%clk 0:01:12]}  Rxa1 {[%clk 0:01:07]} 25. Nbd2 {[%clk 0:00:56]}  Bc5 {[%clk 0:00:55]} 26. e4 {[%clk 0:00:53]}  Ra2 {[%clk 0:00:45]} 27. exd5 {[%clk 0:00:51]}  cxd5 {[%clk 0:00:46]} 28. Kd3 {[%clk 0:00:50]}  Rxb2 {[%clk 0:00:43]} 29. Rh1 {[%clk 0:00:46]}  Ke7 {[%clk 0:00:41]} 30. Rc1 {[%clk 0:00:44]}  Rc8 {[%clk 0:00:36]} 31. Nd4 {[%clk 0:00:31]}  Ra2 {[%clk 0:00:36]} 32. Nb5 {[%clk 0:00:31]}  b6 {[%clk 0:00:35]} 33. Nd6 {[%clk 0:00:30]}  Rb8 {[%clk 0:00:26]} 34. Nb5 {[%clk 0:00:29]}  Kd7 {[%clk 0:00:22]} 35. Nf3 {[%clk 0:00:19]}  Rba8 {[%clk 0:00:22]} 36. Nfd4 {[%clk 0:00:15]}  Ra1 {[%clk 0:00:19]} 37. Rc2 {[%clk 0:00:13]}  R8a2 {[%clk 0:00:19]} 38. f5 {[%clk 0:00:11]}  Rxc2 {[%clk 0:00:14]} 39. e6+ {[%clk 0:00:11]}  fxe6 {[%clk 0:00:14]} 40. fxe6+ {[%clk 0:00:05]}  Ke7 {[%clk 0:00:14]} 41. Nxc2 {[%clk 0:00:04]}  Rh1 {[%clk 0:00:14]} 42. Ncd4 {[%clk 0:00:03]}  Bxd4 {[%clk 0:00:15]} 43. Nxd4 {[%clk 0:00:02]}  Rxh4 {[%clk 0:00:15]} 44. Nf3 {[%clk 0:00:02]}  Rh3 {[%clk 0:00:14]} 45. Ke3 {[%clk 0:00:02]}  Rxf3+ {[%clk 0:00:15]} 46. Kxf3 {[%clk 0:00:02]}  Kxe6 {[%clk 0:00:16]} 47. Ke3 {[%clk 0:00:03]}  Ke5 {[%clk 0:00:16]} 48. Kd3 {[%clk 0:00:03]}  h4 {[%clk 0:00:17]} 49. Ke3 {[%clk 0:00:02]}  d4+ {[%clk 0:00:17]} 50. Kd3 {[%clk 0:00:02]}  h3 {[%clk 0:00:17]} 51. Ke2 {[%clk 0:00:03]}  h2 {[%clk 0:00:17]} 52. Kf2 {[%clk 0:00:04]}  h1=Q {[%clk 0:00:18]} 53. Ke2 {[%clk 0:00:05]}  Qg2+ {[%clk 0:00:18]} 54. Kd3 {[%clk 0:00:06]}  Qf3+ {[%clk 0:00:18]} 55. Kc4 {[%clk 0:00:06]}  Qc3+ {[%clk 0:00:18]} 56. Kb5 {[%clk 0:00:07]}  Qc5+ {[%clk 0:00:18]} 57. Ka4 {[%clk 0:00:07]}  b5+ {[%clk 0:00:19]} 58. Ka5 {[%clk 0:00:07]}  d3 {[%clk 0:00:19]} 59. Ka6 {[%clk 0:00:07]}  d2 {[%clk 0:00:20]} 60. Ka5 {[%clk 0:00:08]}  d1=Q {[%clk 0:00:19]} 61. Ka6 {[%clk 0:00:09]}  Qdd6+ {[%clk 0:00:20]} 62. Kb7 {[%clk 0:00:10]}  Qcc7+ {[%clk 0:00:20]} 63. Ka8 {[%clk 0:00:11]}  Qdd8# {[%clk 0:00:20]} 0-1


[Site "https://www.chess.com"]

[Event "Titled Tuesday Blitz August 08 Late 2023"]
[White "Fisher_TheGalactic"]
[Black "Vaglio Munoz, Jaime"]
[BlackFideId "6500145"]
[WhiteElo "2670"]
[BlackElo "2248"]
[Result "1-0"]
[Round "2"]
[TimeControl "180+1"]
[Date "2023.08.08"]
[WhiteClock "0:00:55"]
[BlackClock "0:00:23"]
[Board "82"]

1. e4 {[%clk 0:02:57]}  c5 {[%clk 0:02:59]} 2. Nf3 {[%clk 0:02:58]}  Qa5 {[%clk 0:02:59]} 3. Bc4 {[%clk 0:02:57]}  e6 {[%clk 0:02:59]} 4. O-O {[%clk 0:02:57]}  b5 {[%clk 0:02:59]} 5. Be2 {[%clk 0:02:56]}  Bb7 {[%clk 0:02:59]} 6. d3 {[%clk 0:02:57]}  Nf6 {[%clk 0:02:59]} 7. Nbd2 {[%clk 0:02:55]}  d5 {[%clk 0:02:57]} 8. exd5 {[%clk 0:02:55]}  Bxd5 {[%clk 0:02:55]} 9. Re1 {[%clk 0:02:55]}  Be7 {[%clk 0:02:54]} 10. Nf1 {[%clk 0:02:55]}  O-O {[%clk 0:02:54]} 11. Ne3 {[%clk 0:02:55]}  Bb7 {[%clk 0:02:52]} 12. Ne5 {[%clk 0:02:54]}  Nc6 {[%clk 0:02:50]} 13. Nxc6 {[%clk 0:02:52]}  Bxc6 {[%clk 0:02:49]} 14. Bf3 {[%clk 0:02:53]}  Rac8 {[%clk 0:02:48]} 15. Bd2 {[%clk 0:02:50]}  Qb6 {[%clk 0:02:47]} 16. Bxc6 {[%clk 0:02:47]}  Qxc6 {[%clk 0:02:46]} 17. Ng4 {[%clk 0:02:48]}  Nxg4 {[%clk 0:02:44]} 18. Qxg4 {[%clk 0:02:49]}  Bf6 {[%clk 0:02:44]} 19. Bc3 {[%clk 0:02:48]}  Bxc3 {[%clk 0:02:42]} 20. bxc3 {[%clk 0:02:49]}  c4 {[%clk 0:02:41]} 21. d4 {[%clk 0:02:49]}  Rcd8 {[%clk 0:02:32]} 22. Re5 {[%clk 0:02:48]}  Rd5 {[%clk 0:02:32]} 23. Rae1 {[%clk 0:02:49]}  a5 {[%clk 0:02:29]} 24. Rxd5 {[%clk 0:02:48]}  exd5 {[%clk 0:02:22]} 25. Qf4 {[%clk 0:02:39]}  h6 {[%clk 0:02:18]} 26. h3 {[%clk 0:02:35]}  b4 {[%clk 0:02:18]} 27. cxb4 {[%clk 0:02:33]}  axb4 {[%clk 0:02:19]} 28. Re7 {[%clk 0:02:33]}  Qg6 {[%clk 0:02:12]} 29. Qd2 {[%clk 0:02:27]}  c3 {[%clk 0:02:10]} 30. Qe2 {[%clk 0:02:27]}  Kh7 {[%clk 0:01:55]} 31. Rb7 {[%clk 0:02:24]}  Ra8 {[%clk 0:01:51]} 32. Rxb4 {[%clk 0:01:36]}  Rxa2 {[%clk 0:01:50]} 33. Rb7 {[%clk 0:01:25]}  Rxc2 {[%clk 0:01:47]} 34. Qe3 {[%clk 0:01:25]}  Rd2 {[%clk 0:01:38]} 35. Qxc3 {[%clk 0:01:20]}  Qg5 {[%clk 0:01:27]} 36. Rxf7 {[%clk 0:01:14]}  Rd1+ {[%clk 0:00:52]} 37. Kh2 {[%clk 0:01:13]}  Qg6 {[%clk 0:00:52]} 38. Rf3 {[%clk 0:01:00]}  Qd6+ {[%clk 0:00:48]} 39. Rg3 {[%clk 0:01:00]}  Kh8 {[%clk 0:00:31]} 40. Qc8+ {[%clk 0:00:58]}  Kh7 {[%clk 0:00:29]} 41. Qc2+ {[%clk 0:00:58]}  Kg8 {[%clk 0:00:26]} 42. Qxd1 {[%clk 0:00:54]}  h5 {[%clk 0:00:27]} 43. Qxh5 {[%clk 0:00:54]}  Qf4 {[%clk 0:00:24]} 44. Qe8+ {[%clk 0:00:54]}  Kh7 {[%clk 0:00:24]} 45. Qg6+ {[%clk 0:00:55]}  Kg8 {[%clk 0:00:23]} 46. Qxg7# {[%clk 0:00:55]} 1-0


[Site "https://www.chess.com"]

[Event "Titled Tuesday Blitz August 08 Late 2023"]
[White "Sarkar, Justin"]
[Black "MKlose11"]
[WhiteFideId "2010011"]
[WhiteElo "2237"]
[BlackElo "2664"]
[Result "0-1"]
[Round "2"]
[TimeControl "180+1"]
[Date "2023.08.08"]
[WhiteClock "0:00:00"]
[BlackClock "0:00:33"]
[Board "83"]

1. d4 {[%clk 0:02:45]}  Nf6 {[%clk 0:02:58]} 2. c4 {[%clk 0:02:45]}  c5 {[%clk 0:02:58]} 3. d5 {[%clk 0:02:45]}  b5 {[%clk 0:02:58]} 4. cxb5 {[%clk 0:02:42]}  a6 {[%clk 0:02:58]} 5. b6 {[%clk 0:02:38]}  d6 {[%clk 0:02:57]} 6. Nc3 {[%clk 0:02:37]}  g6 {[%clk 0:02:58]} 7. e4 {[%clk 0:02:36]}  Bg7 {[%clk 0:02:58]} 8. Nf3 {[%clk 0:02:26]}  O-O {[%clk 0:02:57]} 9. a4 {[%clk 0:02:25]}  Qxb6 {[%clk 0:02:57]} 10. a5 {[%clk 0:02:24]}  Qb7 {[%clk 0:02:56]} 11. Be2 {[%clk 0:02:19]}  Bg4 {[%clk 0:02:56]} 12. Nd2 {[%clk 0:02:12]}  Bxe2 {[%clk 0:02:52]} 13. Qxe2 {[%clk 0:02:12]}  Nbd7 {[%clk 0:02:53]} 14. O-O {[%clk 0:02:10]}  Ne8 {[%clk 0:02:49]} 15. Nc4 {[%clk 0:02:07]}  Nc7 {[%clk 0:02:49]} 16. Bf4 {[%clk 0:02:01]}  Nb5 {[%clk 0:02:46]} 17. e5 {[%clk 0:01:56]}  Nxc3 {[%clk 0:02:33]} 18. bxc3 {[%clk 0:01:55]}  dxe5 {[%clk 0:02:20]} 19. Nxe5 {[%clk 0:01:53]}  Qxd5 {[%clk 0:01:58]} 20. Rad1 {[%clk 0:01:50]}  Qe6 {[%clk 0:01:58]} 21. Rfe1 {[%clk 0:01:14]}  Nxe5 {[%clk 0:01:56]} 22. Bxe5 {[%clk 0:01:14]}  Rad8 {[%clk 0:01:48]} 23. Rxd8 {[%clk 0:00:49]}  Rxd8 {[%clk 0:01:46]} 24. h3 {[%clk 0:00:49]}  Rd7 {[%clk 0:01:33]} 25. Bxg7 {[%clk 0:00:44]}  Qxe2 {[%clk 0:01:33]} 26. Rxe2 {[%clk 0:00:44]}  Kxg7 {[%clk 0:01:33]} 27. Re5 {[%clk 0:00:42]}  Rc7 {[%clk 0:01:33]} 28. Rd5 {[%clk 0:00:40]}  c4 {[%clk 0:01:19]} 29. Kf1 {[%clk 0:00:31]}  Kf6 {[%clk 0:01:17]} 30. Ke2 {[%clk 0:00:20]}  Ke6 {[%clk 0:01:17]} 31. Rd4 {[%clk 0:00:20]}  Rc5 {[%clk 0:01:16]} 32. f4 {[%clk 0:00:18]}  h5 {[%clk 0:01:11]} 33. g4 {[%clk 0:00:13]}  h4 {[%clk 0:01:08]} 34. Kf3 {[%clk 0:00:12]}  f5 {[%clk 0:00:58]} 35. g5 {[%clk 0:00:02]}  Kf7 {[%clk 0:00:53]} 36. Ke3 {[%clk 0:00:02]}  Rxa5 {[%clk 0:00:42]} 37. Rxc4 {[%clk 0:00:02]}  Ra2 {[%clk 0:00:43]} 38. Rc6 {[%clk 0:00:01]}  a5 {[%clk 0:00:41]} 39. c4 {[%clk 0:00:01]}  Rh2 {[%clk 0:00:35]} 40. c5 {[%clk 0:00:01]}  Rxh3+ {[%clk 0:00:35]} 41. Kd4 {[%clk 0:00:00]}  Rf3 {[%clk 0:00:33]} 0-1


[Site "https://www.chess.com"]

[Event "Titled Tuesday Blitz August 08 Late 2023"]
[White "Weetik, Vjacheslav"]
[Black "Kula, Robert"]
[WhiteFideId "4153472"]
[BlackFideId "1101218"]
[WhiteElo "2664"]
[BlackElo "2233"]
[Result "1-0"]
[Round "2"]
[TimeControl "180+1"]
[Date "2023.08.08"]
[WhiteClock "0:00:08"]
[BlackClock "0:00:26"]
[Board "84"]

1. d4 {[%clk 0:02:59]}  d5 {[%clk 0:02:59]} 2. c4 {[%clk 0:02:59]}  c6 {[%clk 0:02:59]} 3. Nf3 {[%clk 0:02:59]}  Nf6 {[%clk 0:02:58]} 4. g3 {[%clk 0:02:58]}  g6 {[%clk 0:02:57]} 5. Bg2 {[%clk 0:02:58]}  Bg7 {[%clk 0:02:58]} 6. O-O {[%clk 0:02:59]}  O-O {[%clk 0:02:57]} 7. Qb3 {[%clk 0:03:00]}  dxc4 {[%clk 0:02:54]} 8. Qxc4 {[%clk 0:03:00]}  Nbd7 {[%clk 0:02:54]} 9. e3 {[%clk 0:02:57]}  Nb6 {[%clk 0:02:53]} 10. Qe2 {[%clk 0:02:57]}  Bf5 {[%clk 0:02:52]} 11. Rd1 {[%clk 0:02:56]}  Qc7 {[%clk 0:02:47]} 12. Nc3 {[%clk 0:02:51]}  Ne4 {[%clk 0:02:46]} 13. Nd2 {[%clk 0:02:38]}  Nxd2 {[%clk 0:02:38]} 14. Bxd2 {[%clk 0:02:36]}  Rad8 {[%clk 0:02:30]} 15. e4 {[%clk 0:02:35]}  Bc8 {[%clk 0:02:26]} 16. Bf4 {[%clk 0:02:24]}  e5 {[%clk 0:02:17]} 17. dxe5 {[%clk 0:02:24]}  Bxe5 {[%clk 0:02:17]} 18. Bxe5 {[%clk 0:02:23]}  Qxe5 {[%clk 0:02:17]} 19. f4 {[%clk 0:02:23]}  Qc5+ {[%clk 0:02:17]} 20. Qf2 {[%clk 0:02:22]}  Qxf2+ {[%clk 0:02:13]} 21. Kxf2 {[%clk 0:02:23]}  Bg4 {[%clk 0:02:13]} 22. Bf3 {[%clk 0:02:16]}  Bxf3 {[%clk 0:02:10]} 23. Kxf3 {[%clk 0:02:17]}  Nc4 {[%clk 0:02:11]} 24. b3 {[%clk 0:02:13]}  Nd6 {[%clk 0:02:04]} 25. e5 {[%clk 0:01:53]}  Nf5 {[%clk 0:02:04]} 26. Ne4 {[%clk 0:01:51]}  Kg7 {[%clk 0:02:01]} 27. Nf6 {[%clk 0:01:41]}  h5 {[%clk 0:01:57]} 28. h3 {[%clk 0:01:38]}  Nd4+ {[%clk 0:01:56]} 29. Ke4 {[%clk 0:01:32]}  Ne6 {[%clk 0:01:47]} 30. Ke3 {[%clk 0:01:29]}  a5 {[%clk 0:01:37]} 31. a3 {[%clk 0:01:23]}  Nc5 {[%clk 0:01:33]} 32. b4 {[%clk 0:01:22]}  Nb3 {[%clk 0:01:24]} 33. Rab1 {[%clk 0:01:17]}  a4 {[%clk 0:01:25]} 34. Ne4 {[%clk 0:01:05]}  b6 {[%clk 0:01:17]} 35. Ng5 {[%clk 0:00:52]}  Rfe8 {[%clk 0:01:15]} 36. Ne4 {[%clk 0:00:46]}  c5 {[%clk 0:01:08]} 37. bxc5 {[%clk 0:00:42]}  bxc5 {[%clk 0:01:08]} 38. Rd6 {[%clk 0:00:36]}  Rxd6 {[%clk 0:00:58]} 39. Nxd6 {[%clk 0:00:36]}  Re6 {[%clk 0:00:56]} 40. Rb2 {[%clk 0:00:33]}  f6 {[%clk 0:00:56]} 41. Nc4 {[%clk 0:00:31]}  fxe5 {[%clk 0:00:56]} 42. fxe5 {[%clk 0:00:29]}  Re8 {[%clk 0:00:53]} 43. Ke4 {[%clk 0:00:26]}  Kf7 {[%clk 0:00:52]} 44. Nd6+ {[%clk 0:00:26]}  Ke7 {[%clk 0:00:52]} 45. Nxe8 {[%clk 0:00:27]}  Kxe8 {[%clk 0:00:52]} 46. Kd5 {[%clk 0:00:26]}  Ke7 {[%clk 0:00:52]} 47. Rf2 {[%clk 0:00:19]}  g5 {[%clk 0:00:42]} 48. Rf5 {[%clk 0:00:18]}  g4 {[%clk 0:00:42]} 49. h4 {[%clk 0:00:15]}  Nd2 {[%clk 0:00:35]} 50. Rxh5 {[%clk 0:00:15]}  c4 {[%clk 0:00:35]} 51. Rh7+ {[%clk 0:00:14]}  Ke8 {[%clk 0:00:35]} 52. Rc7 {[%clk 0:00:13]}  Kd8 {[%clk 0:00:33]} 53. Rxc4 {[%clk 0:00:12]}  Ke7 {[%clk 0:00:32]} 54. Rxg4 {[%clk 0:00:12]}  Nf1 {[%clk 0:00:30]} 55. Rxa4 {[%clk 0:00:11]}  Nxg3 {[%clk 0:00:29]} 56. Ra7+ {[%clk 0:00:11]}  Ke8 {[%clk 0:00:29]} 57. a4 {[%clk 0:00:11]}  Nf5 {[%clk 0:00:28]} 58. h5 {[%clk 0:00:10]}  Ne3+ {[%clk 0:00:28]} 59. Ke4 {[%clk 0:00:10]}  Nc4 {[%clk 0:00:27]} 60. h6 {[%clk 0:00:10]}  Nxe5 {[%clk 0:00:25]} 61. Kxe5 {[%clk 0:00:10]}  Kf8 {[%clk 0:00:26]} 62. h7 {[%clk 0:00:07]}  Ke8 {[%clk 0:00:26]} 63. h8=Q# {[%clk 0:00:08]} 1-0


[Site "https://www.chess.com"]

[Event "Titled Tuesday Blitz August 08 Late 2023"]
[White "Sailer, Mike"]
[Black "Weishaeutel, Moritz"]
[WhiteFideId "2012901"]
[BlackFideId "12967300"]
[WhiteElo "2193"]
[BlackElo "2655"]
[Result "0-1"]
[Round "2"]
[TimeControl "180+1"]
[Date "2023.08.08"]
[WhiteClock "0:00:01"]
[BlackClock "0:00:09"]
[Board "85"]

1. d4 {[%clk 0:03:00]}  Nf6 {[%clk 0:02:58]} 2. Nc3 {[%clk 0:03:00]}  e6 {[%clk 0:02:54]} 3. Bf4 {[%clk 0:03:00]}  Bb4 {[%clk 0:02:53]} 4. e3 {[%clk 0:02:56]}  d5 {[%clk 0:02:52]} 5. Ne2 {[%clk 0:02:55]}  O-O {[%clk 0:02:51]} 6. a3 {[%clk 0:02:55]}  Be7 {[%clk 0:02:51]} 7. Qd2 {[%clk 0:02:43]}  c5 {[%clk 0:02:50]} 8. h3 {[%clk 0:02:40]}  Nc6 {[%clk 0:02:49]} 9. g4 {[%clk 0:02:39]}  a6 {[%clk 0:02:36]} 10. Bg2 {[%clk 0:02:37]}  b5 {[%clk 0:02:34]} 11. dxc5 {[%clk 0:02:32]}  Bxc5 {[%clk 0:02:33]} 12. Nd4 {[%clk 0:02:32]}  Qb6 {[%clk 0:02:18]} 13. Nxc6 {[%clk 0:02:31]}  Qxc6 {[%clk 0:02:19]} 14. O-O {[%clk 0:02:25]}  Bb7 {[%clk 0:02:10]} 15. Ne2 {[%clk 0:02:23]}  Rfe8 {[%clk 0:02:08]} 16. Nd4 {[%clk 0:02:20]}  Qb6 {[%clk 0:02:07]} 17. Nf3 {[%clk 0:02:13]}  Ne4 {[%clk 0:02:04]} 18. Qe2 {[%clk 0:02:06]}  Rac8 {[%clk 0:02:01]} 19. Ne5 {[%clk 0:02:02]}  Bd6 {[%clk 0:01:54]} 20. Nd3 {[%clk 0:01:51]}  Rc7 {[%clk 0:01:43]} 21. c3 {[%clk 0:01:48]}  a5 {[%clk 0:01:40]} 22. Rfd1 {[%clk 0:01:39]}  Ba6 {[%clk 0:01:39]} 23. Bxd6 {[%clk 0:01:38]}  Nxd6 {[%clk 0:01:39]} 24. Qe1 {[%clk 0:01:16]}  Bb7 {[%clk 0:01:31]} 25. b4 {[%clk 0:01:08]}  a4 {[%clk 0:01:14]} 26. Nc5 {[%clk 0:01:08]}  Bc6 {[%clk 0:01:14]} 27. h4 {[%clk 0:00:47]}  Nb7 {[%clk 0:01:13]} 28. Nd3 {[%clk 0:00:42]}  Rec8 {[%clk 0:01:14]} 29. Rac1 {[%clk 0:00:40]}  Be8 {[%clk 0:00:59]} 30. h5 {[%clk 0:00:37]}  Rc4 {[%clk 0:00:56]} 31. Bf3 {[%clk 0:00:32]}  Nd6 {[%clk 0:00:49]} 32. Ne5 {[%clk 0:00:29]}  R4c7 {[%clk 0:00:49]} 33. Nd3 {[%clk 0:00:25]}  Nc4 {[%clk 0:00:39]} 34. Ra1 {[%clk 0:00:26]}  Qd6 {[%clk 0:00:30]} 35. Nc5 {[%clk 0:00:24]}  Qe5 {[%clk 0:00:26]} 36. Rd4 {[%clk 0:00:20]}  Qg5 {[%clk 0:00:22]} 37. Kf1 {[%clk 0:00:09]}  Ne5 {[%clk 0:00:22]} 38. Be2 {[%clk 0:00:08]}  Qh4 {[%clk 0:00:21]} 39. Kg1 {[%clk 0:00:03]}  Nd7 {[%clk 0:00:15]} 40. Qf1 {[%clk 0:00:04]}  Nxc5 {[%clk 0:00:14]} 41. bxc5 {[%clk 0:00:05]}  Rxc5 {[%clk 0:00:15]} 42. Rb1 {[%clk 0:00:05]}  Rxc3 {[%clk 0:00:14]} 43. Bxb5 {[%clk 0:00:05]}  Bxb5 {[%clk 0:00:15]} 44. Rxb5 {[%clk 0:00:06]}  Rc1 {[%clk 0:00:10]} 45. Rd1 {[%clk 0:00:06]}  Qxg4+ {[%clk 0:00:08]} 46. Kh1 {[%clk 0:00:06]}  Rxd1 {[%clk 0:00:08]} 47. Qxd1 {[%clk 0:00:05]}  Qxd1+ {[%clk 0:00:09]} 48. Kg2 {[%clk 0:00:05]}  Qg4+ {[%clk 0:00:10]} 49. Kf1 {[%clk 0:00:01]}  Qc4+ {[%clk 0:00:09]} 0-1


[Site "https://www.chess.com"]